bitfinex/quotes_SOLUSD_20230110
["timestamp","ask_amount","ask_price","bid_price","bid_amount"]
[1673381896716,17.0,16.428,16.421,20.0]
[1673381897738,17.0,16.428,16.419,40.15]
[1673381897953,45.68,16.427,16.415,11.05405648]
[1673381898184,45.68,16.427,16.41,25.04]
[1673381898382,17.0,16.426,16.411,11.05405648]
[1673381898593,20.0,16.425,16.412,20.0]
[1673381898795,65.68,16.425,16.412,20.0]
[1673381899001,45.68,16.425,16.42,25.18]
[1673381899325,45.67,16.428,16.42,25.18]
[1673381899533,20.0,16.431,16.42,126.26]
[1673381899741,20.0,16.431,16.421,41.54]
[1673381900077,20.0,16.431,16.422,11.05405648]
[1673381900597,20.0,16.431,16.423,42.5]
[1673381903634,20.0,16.433,16.423,42.5]
[1673381903851,20.0,16.433,16.424,11.05405648]
[1673381904254,20.0,16.433,16.425,43.27]
[1673381904888,62.66,16.432,16.424,11.05405648]
[1673381905097,20.0,16.431,16.422,44.28]
[1673381905321,20.0,16.431,16.422,55.33405648]
[1673381908698,20.0,16.432,16.422,55.33405648]
[1673381909099,20.0,16.432,16.423,20.0]
[1673381909317,20.0,16.432,16.422,55.33405648]
[1673381909517,20.0,16.432,16.423,11.05405648]
[1673381910168,20.0,16.432,16.424,41.3]
[1673381910672,20.0,16.432,16.422,42.18]
[1673381911001,20.0,16.432,16.423,11.05405648]
[1673381911532,20.0,16.433,16.424,42.37]
[1673381911841,20.0,16.433,16.424,53.42405648]
[1673381912030,20.0,16.433,16.424,11.05405648]
[1673381914467,20.0,16.442,16.425,81.56]
[1673381914788,20.0,16.442,16.43,125.99]
[1673381915201,20.0,16.442,16.431,149.89887046]
[1673381915408,61.25,16.456,16.431,169.89887046]
[1673381915620,61.25,16.458,16.44,125.99]
[1673381915949,61.25,16.458,16.441,70.9971727]
[1673381916136,61.25,16.458,16.45,25.18]
[1673381916661,61.25,16.457,16.443,65.63]
[1673381916875,61.25,16.457,16.443,20.0]
[1673381917092,106.85,16.456,16.443,20.0]
[1673381917411,125.40825296,16.456,16.444,20.0]
[1673381917623,18.55825296,16.455,16.441,20.0]
[1673381917932,61.25,16.454,16.433,45.66]
[1673381918146,61.25,16.452,16.434,7.02109]
[1673381918339,25.27,16.45,16.433,20.0]
[1673381918676,17.0,16.449,16.432,20.0]
[1673381918985,65.62,16.449,16.43,25.23]
[1673381919194,20.0,16.449,16.431,44.04]
[1673381919512,45.62,16.448,16.431,44.04]
[1673381919715,45.62,16.448,16.431,59.10038096]
[1673381919913,45.62,16.448,16.432,20.0]
[1673381920253,45.62,16.448,16.431,44.04]
[1673381920655,45.62,16.448,16.432,20.0]
[1673381920863,20.0,16.449,16.433,17.0]
[1673381921074,20.0,16.451,16.433,241.71457956]
[1673381921282,157.3846,16.452,16.44,125.98]
[1673381921499,45.6,16.454,16.441,37.0]
[1673381921711,61.25,16.457,16.441,82.64]
[1673381921912,61.25,16.457,16.441,65.64]
[1673381922333,81.25,16.456,16.442,17.0]
[1673381922666,81.25,16.456,16.441,176.4066]
[1673381922880,45.6,16.455,16.441,65.64]
[1673381923095,45.6,16.455,16.441,20.0]
[1673381923298,20.0,16.454,16.441,20.0]
[1673381923490,37.0,16.454,16.442,45.64]
[1673381923709,45.61,16.453,16.442,45.64]
[1673381924241,20.0,16.454,16.442,45.64]
[1673381924658,17.0,16.453,16.442,45.64]
[1673381925323,20.0,16.452,16.442,45.64]
[1673381925532,137.2011,16.452,16.442,45.64]
[1673381926360,17.0,16.451,16.441,65.64]
[1673381927010,20.0,16.45,16.441,65.64]
[1673381927216,137.2011,16.452,16.441,65.64]
[1673381927834,117.2011,16.452,16.441,65.64]
[1673381929201,20.0,16.451,16.441,65.64]
[1673381931516,20.0,16.449,16.441,20.0]
[1673381931928,17.0,16.448,16.441,20.0]
[1673381932161,20.0,16.447,16.437,20.0]
[1673381932371,17.0,16.446,16.435,110.7666]
[1673381932773,65.63,16.445,16.435,110.7666]
[1673381933610,65.63,16.445,16.431,45.67]
[1673381933824,17.0,16.444,16.431,45.67]
[1673381934350,65.63,16.443,16.431,45.67]
[1673381934559,17.0,16.442,16.432,20.0]
[1673381934768,20.0,16.441,16.432,20.0]
[1673381934974,17.0,16.442,16.432,20.0]
[1673381935195,45.62,16.446,16.434,20.0]
[1673381935409,20.0,16.445,16.433,45.66]
[1673381935823,45.63,16.444,16.433,45.66]
[1673381936052,65.63,16.445,16.433,45.66]
[1673381936254,20.0,16.445,16.433,45.66]
[1673381936794,20.0,16.445,16.434,20.0]
[1673381937313,20.0,16.445,16.435,45.66]
[1673381937514,45.62,16.446,16.435,45.66]
[1673381937833,20.0,16.447,16.435,45.66]
[1673381939307,20.0,16.45,16.44,25.23]
[1673381939507,117.2011,16.452,16.441,20.0]
[1673381939710,45.61,16.451,16.441,20.0]
[1673381940133,20.0,16.45,16.441,20.0]
[1673381940551,20.0,16.45,16.435,45.66]
[1673381940762,62.62,16.449,16.435,45.66]
[1673381940998,62.62,16.449,16.434,45.66]
[1673381941184,20.0,16.448,16.434,45.66]
[1673381941516,20.0,16.446,16.434,45.66]
[1673381941721,17.0,16.445,16.434,45.66]
[1673381941933,62.63,16.445,16.434,45.66]
[1673381942127,20.0,16.444,16.432,45.66]
[1673381942759,20.0,16.444,16.431,45.67]
[1673381942760,17.0,16.443,16.431,45.67]
[1673381942969,20.0,16.442,16.432,20.0]
[1673381943404,20.0,16.442,16.433,45.66]
[1673381945071,116.5908,16.443,16.433,98.8875986]
[1673381945298,116.5908,16.443,16.434,20.0]
[1673381945500,116.5908,16.443,16.433,98.8875986]
[1673381945702,116.5908,16.443,16.433,45.66]
[1673381946025,20.0,16.442,16.433,45.66]
[1673381946252,20.0,16.442,16.432,20.0]
[1673381946559,17.0,16.441,16.433,45.66]
[1673381947085,20.0,16.442,16.433,45.66]
[1673381950863,116.5908,16.443,16.433,45.66]
[1673381951485,20.0,16.444,16.434,20.0]
[1673381952011,20.0,16.444,16.435,45.66]
[1673381952340,20.0,16.444,16.434,45.66]
[1673381952536,20.0,16.444,16.433,45.66]
[1673381952746,112.7469,16.443,16.433,45.66]
[1673381953074,20.0,16.442,16.433,49.178421]
[1673381953285,17.0,16.441,16.433,3.518421]
[1673381953492,20.0,16.44,16.433,3.518421]
[1673381953897,17.0,16.439,16.433,3.518421]
[1673381954108,17.0,16.439,16.422,114.7683]
[1673381954109,20.0,16.438,16.422,114.7683]
[1673381954334,17.0,16.437,16.422,114.7683]
[1673381954549,62.65,16.437,16.422,114.7683]
[1673381954949,20.0,16.436,16.422,114.7683]
[1673381955164,17.0,16.435,16.422,114.7683]
[1673381955363,62.66,16.435,16.422,114.7683]
[1673381955786,20.0,16.434,16.422,114.7683]
[1673381955999,17.0,16.433,16.422,114.7683]
[1673381956223,62.66,16.433,16.421,45.69]
[1673381956537,62.66,16.433,16.422,20.0]
[1673381956753,20.0,16.432,16.422,20.0]
[1673381957281,45.67,16.431,16.421,20.0]
[1673381957687,20.0,16.432,16.421,20.0]
[1673381958017,45.66,16.433,16.422,20.0]
[1673381958210,20.0,16.434,16.422,20.0]
[1673381958417,20.0,16.434,16.423,98.9175986]
[1673381958629,20.0,16.438,16.423,98.9175986]
[1673381958838,20.0,16.438,16.425,20.0]
[1673381959282,20.0,16.442,16.43,25.1]
[1673381959466,20.0,16.442,16.431,20.0]
[1673381959675,20.0,16.442,16.431,65.67]
[1673381960306,20.0,16.442,16.431,20.0]
[1673381961062,20.0,16.44,16.431,20.0]
[1673381961272,20.0,16.44,16.431,65.67]
[1673381962114,20.0,16.44,16.431,20.0]
[1673381962840,20.0,16.44,16.432,45.66]
[1673381963173,20.0,16.44,16.42,126.12]
[1673381963366,45.64,16.439,16.42,126.12]
[1673381963569,45.64,16.439,16.422,53.2275986]
[1673381963784,20.0,16.438,16.424,45.69]
[1673381964212,62.65,16.437,16.424,45.69]
[1673381964424,20.0,16.436,16.424,45.69]
[1673381964721,17.0,16.435,16.424,45.69]
[1673381964942,62.66,16.435,16.424,45.69]
[1673381965366,20.0,16.434,16.424,45.69]
[1673381965585,20.0,16.434,16.423,157.7705]
[1673381965783,130.3723,16.434,16.423,157.7705]
[1673381968314,130.3723,16.434,16.423,210.9980986]
[1673381968842,45.66,16.435,16.423,210.9980986]
[1673381969067,20.0,16.438,16.424,32.06038096]
[1673381969375,20.0,16.438,16.424,17.0]
[1673381969556,20.0,16.438,16.425,118.9075986]
[1673381969774,20.0,16.438,16.426,17.0]
[1673381970002,65.64,16.442,16.427,20.0]
[1673381970215,65.64,16.442,16.43,25.1]
[1673381970216,20.0,16.442,16.43,25.1]
[1673381970738,20.0,16.444,16.432,20.0]
[1673381970950,20.0,16.444,16.433,17.0]
[1673381971265,20.0,16.444,16.433,130.94797956]
[1673381971475,20.0,16.444,16.434,53.2275986]
[1673381971682,20.0,16.445,16.435,17.0]
[1673381971887,20.0,16.445,16.435,62.66]
[1673381972096,20.0,16.445,16.436,53.2275986]
[1673381972622,20.0,16.445,16.437,45.65]
[1673381978412,20.0,16.448,16.437,45.65]
[1673381978413,20.0,16.448,16.438,20.0]
[1673381978722,20.0,16.448,16.44,25.23]
[1673381978936,20.0,16.448,16.441,20.0]
[1673381979145,20.0,16.448,16.441,65.64]
[1673381980415,20.0,16.449,16.438,53.2275986]
[1673381980612,20.0,16.449,16.436,51.36273336]
[1673381980613,20.0,16.446,16.435,45.66]
[1673381980935,20.0,16.446,16.437,45.65]
[1673381981155,20.0,16.446,16.436,17.0]
[1673381981342,20.0,16.446,16.437,45.65]
[1673381981972,117.2011,16.452,16.44,126.09]
[1673381982187,117.2011,16.452,16.441,20.0]
[1673381982398,117.2011,16.452,16.441,133.92797956]
[1673381982609,20.0,16.451,16.442,53.2275986]
[1673381982820,65.61,16.451,16.441,51.36273336]
[1673381983027,65.61,16.451,16.435,45.66]
[1673381983249,65.61,16.451,16.432,20.0]
[1673381983461,17.0,16.45,16.432,35.06038096]
[1673381983666,20.0,16.449,16.433,45.66]
[1673381983869,17.0,16.448,16.431,165.1823]
[1673381984286,65.62,16.447,16.43,25.4]
[1673381984518,17.0,16.446,16.431,20.0]
[1673381984711,20.0,16.445,16.431,20.0]
[1673381984923,17.0,16.444,16.431,60.73038096]
[1673381985150,17.0,16.444,16.431,45.67]
[1673381985365,45.63,16.443,16.431,60.73038096]
[1673381985551,20.0,16.441,16.431,45.67]
[1673381986071,20.0,16.441,16.432,20.0]
[1673381986284,62.64,16.44,16.432,20.0]
[1673381986504,62.64,16.44,16.431,20.0]
[1673381986717,20.0,16.439,16.43,25.4]
[1673381986939,20.0,16.439,16.428,15.06038096]
[1673381987128,20.0,16.439,16.431,45.67]
[1673381987343,20.0,16.441,16.432,20.0]
[1673381987656,108.0151,16.443,16.432,60.72038096]
[1673381987872,20.0,16.442,16.431,45.67]
[1673381989249,20.0,16.442,16.432,20.0]
[1673381989757,20.0,16.442,16.433,45.66]
[1673381989967,20.0,16.442,16.432,20.0]
[1673381990930,108.0151,16.443,16.433,32.06038096]
[1673381991116,108.0151,16.443,16.433,77.72038096]
[1673381991327,137.2011,16.452,16.433,60.72038096]
[1673381991566,45.62,16.448,16.44,25.1]
[1673381991874,20.0,16.447,16.434,86.42311432]
[1673381992089,20.0,16.447,16.435,45.66]
[1673381992718,20.0,16.447,16.44,25.23]
[1673381993043,20.0,16.45,16.44,25.23]
[1673381993044,20.0,16.45,16.44,40.29038096]
[1673381993365,117.2011,16.452,16.441,62.64]
[1673381993555,117.2011,16.452,16.443,20.0]
[1673381993991,116.7011,16.452,16.444,45.63]
[1673381994192,116.2011,16.452,16.444,45.63]
[1673381995981,81.25,16.456,16.445,35.54833008]
[1673381996402,81.25,16.456,16.446,45.62]
[1673381996612,126.85,16.456,16.446,45.62]
[1673381996816,126.85,16.456,16.445,18.54833008]
[1673381997985,126.85,16.456,16.444,45.63]
[1673381998201,126.85,16.456,16.445,20.0]
[1673381998407,126.85,16.456,16.446,17.0]
[1673381998739,126.85,16.456,16.45,25.1]
[1673381999035,106.85,16.456,16.45,25.1]
[1673381999451,61.25,16.457,16.45,25.1]
[1673381999661,45.59,16.458,16.45,25.1]
[1673382000387,20.0,16.457,16.45,25.1]
[1673382000702,45.59,16.458,16.45,25.1]
[1673382000909,61.25,16.457,16.45,25.1]
[1673382001138,45.59,16.458,16.445,20.0]
[1673382001362,45.6,16.456,16.443,38.54833008]
[1673382001555,20.0,16.455,16.441,51.5739243]
[1673382001772,17.0,16.454,16.442,20.0]
[1673382001982,20.0,16.455,16.442,20.0]
[1673382002174,62.6,16.454,16.442,20.0]
[1673382002389,20.0,16.453,16.441,20.0]
[1673382002604,20.0,16.453,16.442,18.54833008]
[1673382002814,45.61,16.452,16.442,18.54833008]
[1673382003351,160.7216,16.452,16.442,18.54833008]
[1673382004086,160.7216,16.452,16.44,25.09]
[1673382004296,17.0,16.451,16.437,45.65]
[1673382004616,20.0,16.45,16.434,18.54833008]
[1673382004807,20.0,16.448,16.434,18.54833008]
[1673382005242,45.62,16.447,16.434,18.54833008]
[1673382005438,20.0,16.446,16.433,45.66]
[1673382005650,17.0,16.445,16.431,154.7489]
[1673382005860,62.63,16.445,16.431,154.7489]
[1673382006172,20.0,16.444,16.432,40.0]
[1673382006594,45.63,16.443,16.432,40.0]
[1673382006807,45.63,16.444,16.433,45.66]
[1673382007015,61.25,16.443,16.42,126.01]
[1673382007338,61.25,16.443,16.421,20.0]
[1673382007339,81.25,16.442,16.421,20.0]
[1673382007662,99.80825296,16.442,16.421,20.0]
[1673382007881,45.64,16.441,16.421,20.0]
[1673382008056,62.64,16.441,16.421,20.0]
[1673382008387,20.0,16.44,16.421,20.0]
[1673382008601,17.0,16.439,16.422,20.0]
[1673382008810,50.64,16.439,16.421,20.0]
[1673382009010,45.64,16.439,16.422,17.0]
[1673382009224,45.64,16.439,16.423,20.0]
[1673382009428,45.64,16.439,16.424,17.0]
[1673382010282,20.0,16.438,16.424,17.0]
[1673382010697,20.0,16.437,16.425,44.69085764]
[1673382010913,17.0,16.436,16.425,44.69085764]
[1673382011123,20.0,16.435,16.425,44.69085764]
[1673382011338,20.0,16.432,16.42,25.1]
[1673382011750,45.67,16.431,16.42,25.1]
[1673382012158,45.66,16.432,16.42,25.1]
[1673382012376,45.67,16.43,16.42,25.1]
[1673382012685,45.67,16.431,16.42,25.1]
[1673382012888,45.66,16.432,16.42,25.1]
[1673382013097,45.67,16.43,16.42,25.1]
[1673382013314,20.0,16.43,16.42,25.1]
[1673382013534,45.67,16.429,16.413,40.09]
[1673382013744,17.0,16.428,16.411,150.6313]
[1673382013952,17.0,16.428,16.413,38.49]
[1673382014162,45.68,16.427,16.413,38.49]
[1673382014379,20.0,16.425,16.411,149.0013]
[1673382014827,20.0,16.423,16.412,20.0]
[1673382015019,37.0,16.422,16.401,145.1367]
[1673382015203,82.69,16.422,16.402,20.0]
[1673382015416,20.0,16.421,16.402,20.0]
[1673382015632,65.69,16.422,16.404,20.0]
[1673382015849,45.7,16.42,16.404,20.0]
[1673382016167,45.69,16.424,16.41,25.23]
[1673382016487,109.9003,16.425,16.411,57.60348231]
[1673382016692,109.9003,16.425,16.412,17.0]
[1673382016905,45.67,16.429,16.42,25.23]
[1673382017330,45.67,16.431,16.421,34.60348231]
[1673382017540,45.65,16.437,16.422,20.0]
[1673382017753,20.0,16.432,16.422,20.0]
[1673382019550,45.67,16.431,16.422,20.0]
[1673382019760,45.67,16.431,16.415,43.23]
[1673382020085,20.0,16.43,16.415,43.23]
[1673382020388,20.0,16.43,16.416,17.60348231]
[1673382020575,45.67,16.429,16.413,110.7864]
[1673382020789,17.0,16.428,16.414,58.01348231]
[1673382021209,45.68,16.427,16.414,17.60348231]
[1673382022809,20.0,16.426,16.414,17.60348231]
[1673382023020,45.68,16.427,16.414,17.60348231]
[1673382023215,45.68,16.425,16.42,25.23]
[1673382023543,45.67,16.429,16.42,25.23]
[1673382024162,45.67,16.429,16.42,42.83348231]
[1673382024586,65.66,16.432,16.421,56.4]
[1673382024802,20.0,16.432,16.421,76.4]
[1673382025002,45.65,16.436,16.422,17.60348231]
[1673382025216,45.65,16.436,16.423,17.0]
[1673382025431,45.65,16.436,16.43,24.99]
[1673382025622,45.65,16.438,16.431,17.0]
[1673382025833,45.64,16.439,16.431,44.69085764]
[1673382026066,45.65,16.437,16.431,44.69085764]
[1673382026253,65.65,16.438,16.425,41.79]
[1673382026461,45.65,16.436,16.424,157.4907]
[1673382026676,20.0,16.436,16.424,117.0007]
[1673382026999,45.66,16.435,16.424,117.0007]
[1673382027213,20.0,16.434,16.424,161.69155764]
[1673382027417,20.0,16.434,16.424,44.69085764]
[1673382027744,20.0,16.434,16.425,17.60348231]
[1673382027939,45.66,16.435,16.425,17.60348231]
[1673382028152,20.0,16.436,16.426,61.69085764]
[1673382028479,20.0,16.436,16.427,17.60348231]
[1673382028692,20.0,16.436,16.428,17.0]
[1673382029739,45.66,16.435,16.428,17.0]
[1673382030157,45.66,16.435,16.428,34.60348231]
[1673382030376,20.0,16.436,16.428,34.60348231]
[1673382032160,20.0,16.438,16.43,25.23]
[1673382032357,20.0,16.448,16.431,37.0]
[1673382032565,20.0,16.448,16.431,148.58085402]
[1673382032780,20.0,16.448,16.433,20.0]
[1673382032989,20.0,16.448,16.434,17.0]
[1673382033310,20.0,16.448,16.44,25.1]
[1673382035399,65.61,16.45,16.44,95.2008688]
[1673382035822,20.0,16.453,16.441,20.0]
[1673382036148,126.85,16.454,16.442,90.1008688]
[1673382036344,126.85,16.454,16.442,107.70435111]
[1673382036554,126.85,16.454,16.443,87.70435111]
[1673382036974,20.0,16.451,16.444,70.1008688]
[1673382039610,106.85,16.454,16.444,70.1008688]
[1673382039821,61.25,16.456,16.445,34.60348231]
[1673382040024,61.25,16.456,16.445,17.60348231]
[1673382040236,106.85,16.456,16.446,23.48371404]
[1673382040574,20.0,16.455,16.443,39.25]
[1673382040969,65.6,16.455,16.443,56.85348231]
[1673382041396,65.6,16.455,16.443,39.25]
[1673382041918,65.6,16.455,16.443,56.85348231]
[1673382042980,65.6,16.455,16.443,17.60348231]
[1673382044548,65.6,16.455,16.443,57.22348231]
[1673382045198,65.6,16.455,16.443,17.60348231]
[1673382045410,65.6,16.455,16.442,20.0]
[1673382045728,65.6,16.455,16.442,39.81]
[1673382045948,98.25,16.454,16.439,57.57737171]
[1673382046139,98.25,16.454,16.434,39.83]
[1673382046349,65.61,16.453,16.433,17.60348231]
[1673382046565,17.0,16.452,16.433,17.60348231]
[1673382047103,65.61,16.451,16.433,17.60348231]
[1673382047421,17.0,16.45,16.433,17.60348231]
[1673382047818,20.0,16.448,16.433,17.60348231]
[1673382048030,17.0,16.447,16.433,17.60348231]
[1673382048239,20.0,16.446,16.431,151.4198]
[1673382048451,17.0,16.445,16.431,112.4398]
[1673382048767,20.0,16.444,16.432,50.75348231]
[1673382049202,82.63,16.443,16.43,56.34]
[1673382049405,82.63,16.443,16.43,25.09]
[1673382049614,20.0,16.442,16.43,25.09]
[1673382049819,20.0,16.442,16.43,56.34]
[1673382050148,45.64,16.441,16.43,73.94348231]
[1673382050756,20.0,16.44,16.43,73.94348231]
[1673382051395,114.0553,16.443,16.431,31.25]
[1673382051611,114.6334,16.452,16.432,17.0]
[1673382051831,114.6334,16.452,16.44,24.99]
[1673382051832,134.6334,16.452,16.44,24.99]
[1673382052036,20.0,16.453,16.44,126.04]
[1673382052237,81.25,16.456,16.441,68.11]
[1673382052453,81.25,16.456,16.441,186.94610119]
[1673382052654,81.25,16.456,16.442,64.53299615]
[1673382052867,81.25,16.456,16.443,17.0]
[1673382053078,81.25,16.456,16.443,114.47299615]
[1673382053304,81.25,16.456,16.444,64.53299615]
[1673382053515,81.25,16.456,16.445,17.0]
[1673382053713,81.25,16.456,16.445,116.11299615]
[1673382053922,81.25,16.456,16.446,17.60348231]
[1673382054352,81.25,16.456,16.446,64.53299615]
[1673382054750,81.25,16.456,16.447,34.60348231]
[1673382054966,81.25,16.456,16.447,17.60348231]
[1673382055289,81.25,16.456,16.447,54.62348231]
[1673382055499,81.25,16.456,16.447,17.60348231]
[1673382056362,81.25,16.456,16.448,17.0]
[1673382056553,61.25,16.457,16.448,17.0]
[1673382056764,61.25,16.457,16.45,25.23]
[1673382056992,81.25,16.458,16.45,25.23]
[1673382057605,20.0,16.458,16.45,25.23]
[1673382057828,20.0,16.456,16.45,42.83348231]
[1673382058131,81.25,16.456,16.45,25.23]
[1673382058762,20.0,16.456,16.45,25.23]
[1673382059934,65.6,16.456,16.45,25.23]
[1673382060150,126.85,16.456,16.45,25.23]
[1673382060987,20.0,16.456,16.45,25.23]
[1673382067289,20.0,16.456,16.446,46.92951384]
[1673382067492,45.6,16.455,16.446,46.92951384]
[1673382067705,20.0,16.454,16.446,46.92951384]
[1673382067918,20.0,16.453,16.44,25.4]
[1673382068109,20.0,16.452,16.44,25.4]
[1673382068324,17.0,16.451,16.434,203.23950504]
[1673382068536,45.61,16.451,16.434,220.84298735]
[1673382068744,37.0,16.45,16.435,54.30310504]
[1673382069176,65.62,16.449,16.434,132.45988231]
[1673382069605,65.62,16.449,16.436,20.0]
[1673382070036,65.62,16.449,16.437,48.73348231]
[1673382070215,65.62,16.449,16.44,25.23]
[1673382071504,20.0,16.449,16.44,42.83348231]
[1673382072863,20.0,16.45,16.441,48.12]
[1673382073178,20.0,16.452,16.442,20.0]
[1673382073587,20.0,16.452,16.443,48.67348231]
[1673382074009,20.0,16.452,16.444,17.60348231]
[1673382074225,20.0,16.452,16.444,35.20696462]
[1673382074544,20.0,16.452,16.444,17.60348231]
[1673382075900,45.61,16.451,16.44,25.27]
[1673382076431,20.0,16.45,16.44,42.87348231]
[1673382077692,20.0,16.45,16.441,31.07]
[1673382078213,20.0,16.45,16.441,48.67348231]
[1673382078413,20.0,16.45,16.44,25.27]
[1673382079575,20.0,16.45,16.438,17.60348231]
[1673382079783,45.62,16.449,16.436,31.11]
[1673382079994,45.62,16.449,16.435,31.11]
[1673382080534,20.0,16.448,16.435,31.11]
[1673382081052,45.62,16.447,16.435,31.11]
[1673382081482,20.0,16.446,16.435,31.11]
[1673382081793,20.0,16.446,16.435,48.71348231]
[1673382082003,20.0,16.446,16.435,17.60348231]
[1673382082218,20.0,16.446,16.435,48.80348231]
[1673382082666,20.0,16.446,16.44,25.23]
[1673382084323,20.0,16.446,16.437,31.2]
[1673382084535,20.0,16.446,16.436,31.2]
[1673382084751,20.0,16.446,16.435,48.80348231]
[1673382084958,45.63,16.445,16.435,17.60348231]
[1673382085178,20.0,16.446,16.435,17.60348231]
[1673382085584,20.0,16.446,16.435,48.81348231]
[1673382086970,45.63,16.445,16.435,48.81348231]
[1673382087182,20.0,16.444,16.435,17.60348231]
[1673382087797,20.0,16.444,16.431,31.21]
[1673382088008,20.0,16.442,16.43,71.23226129]
[1673382088230,17.0,16.441,16.43,71.23226129]
[1673382088445,20.0,16.44,16.43,25.4]
[1673382088634,17.0,16.439,16.43,25.4]
[1673382088849,20.0,16.438,16.43,25.4]
[1673382090631,20.0,16.442,16.431,20.0]
[1673382090851,20.0,16.45,16.432,17.0]
[1673382091063,20.0,16.45,16.433,20.0]
[1673382091381,20.0,16.45,16.434,17.0]
[1673382091382,65.61,16.45,16.434,17.0]
[1673382091595,65.61,16.45,16.434,34.60348231]
[1673382091784,65.61,16.45,16.435,48.71348231]
[1673382091996,65.61,16.45,16.436,17.0]
[1673382092206,65.61,16.45,16.436,34.60348231]
[1673382092438,65.61,16.45,16.437,48.71348231]
[1673382092748,65.61,16.45,16.436,31.11]
[1673382093168,65.62,16.448,16.435,31.11]
[1673382095474,17.0,16.447,16.43,25.27]
[1673382095692,61.25,16.444,16.43,25.27]
[1673382095885,147.2318,16.443,16.43,25.27]
[1673382096095,192.8618,16.443,16.43,25.27]
[1673382096414,20.0,16.441,16.429,17.60348231]
[1673382096636,20.0,16.439,16.429,17.60348231]
[1673382097163,45.65,16.438,16.429,17.60348231]
[1673382097489,20.0,16.437,16.429,17.60348231]
[1673382097673,20.0,16.437,16.425,42.30624633]
[1673382098008,20.0,16.437,16.427,17.60348231]
[1673382098217,20.0,16.437,16.426,20.0]
[1673382098522,20.0,16.437,16.426,37.60348231]
[1673382098738,45.65,16.438,16.427,17.60348231]
[1673382099147,20.0,16.439,16.427,17.60348231]
[1673382099359,20.0,16.439,16.428,17.0]
[1673382099771,20.0,16.439,16.428,34.60348231]
[1673382100632,45.64,16.44,16.428,34.60348231]
[1673382100830,155.7616,16.442,16.43,24.99]
[1673382101168,110.2318,16.443,16.431,37.0]
[1673382101351,110.2318,16.443,16.432,20.0]
[1673382101680,110.2318,16.443,16.434,20.0]